[Event "World Senior chT-50 2019"]
[Site "Rhodes"]
[Date "2019.04.21"]
[Round "6.26"]
[White "Viljava, Tapani"]
[Black "Gamback, Bjorn"]
[Result "0-1"]
[ECO "A04"]
[WhiteElo "2159"]
[BlackElo "2101"]
[Annotator "NA"]
[PlyCount "115"]
[EventDate "2019.04.16"]
[EventType "team-tourn"]
[EventCountry "GRE"]
[SourceTitle "playchess.com"]
[Source "ChessBase"]
[SourceQuality "1"]
[WhiteTeam "Finland"]
[BlackTeam "Sweden"]
[WhiteTeamCountry "FIN"]
[BlackTeamCountry "SWE"]
[TimeControl "40/5400+30:1800+30"]

1. Nf3 {[%emt 0:00:10]} g6 {[%emt 0:00:46]} 2. g3 {[%emt 0:00:15]} Bg7 {[%emt 0:00:10]} 3. Bg2 {[%emt 0:00:06]} d6 {[%emt 0:01:38]} 4. e4 {[%emt 0:01:36]} c5 {[%emt 0:04:45]} 5. d3 {[%emt 0:04:12]} Nc6 {[%emt 0:00:46]} 6. Nbd2 {[%emt 0:02:29]} e6 {[%emt 0:03:32]} 7. O-O {[%emt 0:03:57]} Nge7 {[%emt 0:04:28]} 8. Re1 {[%emt 0:02:59]} O-O {[%emt 0:00:53]} 9. Nf1 {[%emt 0:01:49]} b6 {[%emt 0:07:55]} 10. c3 {[%emt 0:04:30]} e5 {[%emt 0:07:13]} 11. Ne3 {[%emt 0:06:03]} h6 {[%emt 0:05:39]} 12. h3 {[%emt 0:09:22]} Be6 {[%emt 0:04:52]} 13. Kh2 {[%emt 0:01:19]} d5 {[%emt 0:04:09]} 14. exd5 {[%emt 0:07:47]} Nxd5 {[%emt 0:00:11]} 15. Nc4 {[%emt 0:04:52]} f6 {[%emt 0:24:12]} 16. a4 {[%emt 0:09:45]} Qd7 {[%emt 0:04:31]} 17. Qc2 {[%emt 0:07:02]} Rad8 {[%emt 0:02:31]} 18. b3 {[%emt 0:03:48]} Nde7 {[%emt 0:03:49]} 19. Nb2 {[%emt 0:01:32]} Bf5 {[%emt 0:02:47]} 20. Bf1 {[%emt 0:00:27]} g5 {[%emt 0:01:49]} 21. Qe2 {[%emt 0:01:58]} Bg6 {[%emt 0:00:59]} 22. Rd1 {[%emt 0:05:30]} Rfe8 {[%emt 0:02:29]} 23. Ne1 {[%emt 0:02:55]} Nd5 {[%emt 0:03:26]} 24. Bd2 {[%emt 0:01:05]} f5 {[%emt 0:00:35]} 25. Bg2 {[%emt 0:00:56]} Qf7 {[%emt 0:01:24]} 26. Qf1 {[%emt 0:01:52]} Na5 {[%emt 0:03:46]} 27. Ra3 {[%emt 0:01:00]} Nxb3 {[%emt 0:01:18]} 28. Rxb3 {[%emt 0:02:21]} Ne3 {[%emt 0:00:09]} 29. fxe3 {[%emt 0:00:23]} Qxb3 {[%emt 0:00:03]} 30. Rb1 {[%emt 0:00:50]} e4 {[%emt 0:01:27]} 31. d4 {[%emt 0:00:39]} cxd4 {[%emt 0:00:27]} 32. cxd4 {[%emt 0:00:23]} Rc8 {[%emt 0:00:19]} 33. Qb5 {[%emt 0:01:35]} Qe6 {[%emt 0:01:18]} 34. Bf1 {[%emt 0:00:25]} Bf7 {[%emt 0:00:38]} 35. Nd1 {[%emt 0:02:48]} Red8 {[%emt 0:00:34]} 36. Nc3 {[%emt 0:01:30]} f4 {[%emt 0:00:31]} 37. gxf4 {[%emt 0:01:14]} gxf4 {[%emt 0:00:04]} 38. Rb4 {[%emt 0:00:45]} Bf8 {[%emt 0:00:33]} 39. d5 {[%emt 0:00:21]} Qg6 {[%emt 0:01:04]} 40. Rxe4 {[%emt 0:00:00]} Rxc3 {[%emt 0:00:00]} 41. Rxf4 {[%emt 0:11:47]} Rc5 {[%emt 0:14:10]} 42. Rg4 {[%emt 0:00:24]} Qxg4 {[%emt 0:00:59]} 43. hxg4 {[%emt 0:00:08]} Rxb5 {[%emt 0:00:06]} 44. Bxb5 {[%emt 0:02:13]} Rxd5 {[%emt 0:00:27]} 45. Bc3 {[%emt 0:01:05]} Bg7 {[%emt 0:02:39]} 46. Bxg7 {[%emt 0:02:48]} Kxg7 {[%emt 0:00:08]} 47. Kg3 {[%emt 0:00:08]} Be6 {[%emt 0:01:49]} 48. Nf3 {[%emt 0:00:15]} Bc8 {[%emt 0:02:45]} 49. Nd4 {[%emt 0:02:15]} Rg5 {[%emt 0:01:48]} 50. Be2 {[%emt 0:00:07]} Ra5 {[%emt 0:01:28]} 51. Bb5 {[%emt 0:01:07]} a6 {[%emt 0:00:42]} 52. Bc6 {[%emt 0:00:42]} Rg5 {[%emt 0:02:06]} 53. Bf3 {[%emt 0:00:31]} Kf6 {[%emt 0:01:20]} 54. Kf4 {[%emt 0:00:30]} Bd7 {[%emt 0:00:20]} 55. Nf5 {[%emt 0:02:26]} Bxf5 {[%emt 0:00:21]} 56. gxf5 {[%emt 0:00:17]} Rxf5+ {[%emt 0:00:15]} 57. Ke4 {[%emt 0:00:15]} Rxf3 {[%emt 0:01:12]} 58. Kd4 {[%emt 0:00:30] Ke5+ [%clk 00:07:11]} 0-1

[Event "World Senior chT-50 2019"]
[Site "Rhodes"]
[Date "2019.04.21"]
[Round "6.27"]
[White "Franzen, Thomas"]
[Black "Salonen, Jyrki"]
[Result "0-1"]
[ECO "A37"]
[WhiteElo "2015"]
[BlackElo "2162"]
[Annotator "NA"]
[PlyCount "48"]
[EventDate "2019.04.16"]
[EventType "team-tourn"]
[EventCountry "GRE"]
[SourceTitle "playchess.com"]
[Source "ChessBase"]
[SourceQuality "1"]
[WhiteTeam "Sweden"]
[BlackTeam "Finland"]
[WhiteTeamCountry "SWE"]
[BlackTeamCountry "FIN"]
[TimeControl "40/5400+30:1800+30"]

1. c4 {[%emt 0:00:00]} c5 {[%emt 0:00:00]} 2. g3 {[%emt 0:00:00]} Nc6 {[%emt 0:00:15]} 3. Bg2 {[%emt 0:00:04]} g6 {[%emt 0:00:26]} 4. Nf3 {[%emt 0:00:14]} Bg7 {[%emt 0:00:17]} 5. Nc3 {[%emt 0:00:12]} d6 {[%emt 0:00:39]} 6. a3 {[%emt 0:01:10]} e6 {[%emt 0:01:20]} 7. b4 {[%emt 0:01:30]} Nge7 {[%emt 0:01:22]} 8. Rb1 {[%emt 0:02:53]} O-O {[%emt 0:01:42]} 9. h4 {[%emt 0:02:18]} h6 {[%emt 0:09:37]} 10. Na4 {[%emt 0:06:08]} b6 {[%emt 0:15:04]} 11. h5 {[%emt 0:01:35]} Qd7 {[%emt 0:02:23]} 12. hxg6 {[%emt 0:01:48]} fxg6 {[%emt 0:00:13]} 13. d4 {[%emt 0:09:22]} cxd4 {[%emt 0:19:29]} 14. Bxh6 {[%emt 0:00:27]} Bxh6 {[%emt 0:09:50]} 15. Rxh6 {[%emt 0:00:08]} Kg7 {[%emt 0:00:07]} 16. Rh2 {[%emt 0:11:00]} Bb7 {[%emt 0:03:57]} 17. b5 {[%emt 0:06:12]} Ne5 {[%emt 0:09:46]} 18. Qxd4 {[%emt 0:00:39]} Bxf3 {[%emt 0:01:43]} 19. exf3 {[%emt 0:05:30]} Nf5 {[%emt 0:02:13]} 20. Qc3 {[%emt 0:04:55]} Rac8 {[%emt 0:02:28]} 21. c5 {[%emt 0:02:50]} Kg8 {[%emt 0:01:46]} 22. f4 {[%emt 0:02:15]} bxc5 {[%emt 0:04:44]} 23. fxe5 {[%emt 0:00:23]} d5 {[%emt 0:01:22]} 24. g4 {[%emt 0:03:06]} d4 {[%emt 0:02:49]} 0-1

[Event "World Senior chT-50 2019"]
[Site "Rhodes"]
[Date "2019.04.21"]
[Round "6.28"]
[White "Fieandt, John"]
[Black "Johansson, Bjorn"]
[Result "1/2-1/2"]
[ECO "E68"]
[WhiteElo "2151"]
[BlackElo "1888"]
[Annotator "NA"]
[PlyCount "42"]
[EventDate "2019.04.16"]
[EventType "team-tourn"]
[EventCountry "GRE"]
[SourceTitle "playchess.com"]
[Source "ChessBase"]
[SourceQuality "1"]
[WhiteTeam "Finland"]
[BlackTeam "Sweden"]
[WhiteTeamCountry "FIN"]
[BlackTeamCountry "SWE"]
[TimeControl "40/5400+30:1800+30"]

1. d4 {[%emt 0:00:00]} Nf6 {[%emt 0:00:00]} 2. c4 {[%emt 0:00:00]} g6 {[%emt 0:00:00]} 3. Nf3 {[%emt 0:00:29]} Bg7 {[%emt 0:00:03]} 4. g3 {[%emt 0:00:08]} O-O {[%emt 0:05:10]} 5. Bg2 {[%emt 0:00:58]} d6 {[%emt 0:02:09]} 6. O-O {[%emt 0:00:20]} Nbd7 {[%emt 0:00:26]} 7. Nc3 {[%emt 0:00:21]} c6 {[%emt 0:00:31]} 8. b3 {[%emt 0:00:51]} e5 {[%emt 0:01:01]} 9. e4 {[%emt 0:00:39]} Re8 {[%emt 0:04:31]} 10. d5 {[%emt 0:13:09]} c5 {[%emt 0:07:28]} 11. a3 {[%emt 0:01:49]} Nh5 {[%emt 0:04:50]} 12. Rb1 {[%emt 0:03:50]} f5 {[%emt 0:04:25]} 13. Ng5 {[%emt 0:06:56]} Ndf6 {[%emt 0:02:49]} 14. Ne6 {[%emt 0:10:30]} Qe7 {[%emt 0:02:30]} 15. exf5 {[%emt 0:13:16]} gxf5 {[%emt 0:02:36]} 16. Bf3 {[%emt 0:02:14]} e4 {[%emt 0:01:05]} 17. Bxh5 {[%emt 0:02:01]} Nxh5 {[%emt 0:00:18]} 18. Qxh5 {[%emt 0:08:16]} Bxe6 {[%emt 0:02:12]} 19. dxe6 {[%emt 0:13:41]} Bxc3 {[%emt 0:01:39]} 20. Qxf5 {[%emt 0:00:08]} Qxe6 {[%emt 0:00:27]} 21. Qg5+ {[%emt 0:01:38]} Qg6 {[%emt 0:00:35]} 1/2-1/2

[Event "World Senior chT-50 2019"]
[Site "Rhodes"]
[Date "2019.04.21"]
[Round "6.29"]
[White "Kristiansen, Erling"]
[Black "Lewis, Andrew P"]
[Result "1-0"]
[ECO "E69"]
[WhiteElo "2134"]
[BlackElo "2347"]
[Annotator "NA"]
[PlyCount "63"]
[EventDate "2019.04.16"]
[EventType "team-tourn"]
[EventCountry "GRE"]
[SourceTitle "playchess.com"]
[Source "ChessBase"]
[SourceQuality "1"]
[WhiteTeam "Norway"]
[BlackTeam "England"]
[WhiteTeamCountry "NOR"]
[BlackTeamCountry "ENG"]
[TimeControl "40/5400+30:1800+30"]

1. d4 {[%emt 0:00:00]} Nf6 {[%emt 0:00:00]} 2. c4 {[%emt 0:00:00]} g6 {[%emt 0:00:00]} 3. Nf3 {[%emt 0:00:00]} Bg7 {[%emt 0:00:09]} 4. g3 {[%emt 0:00:13]} O-O {[%emt 0:00:11]} 5. Bg2 {[%emt 0:00:09]} d6 {[%emt 0:00:13]} 6. Nc3 {[%emt 0:00:09]} Nbd7 {[%emt 0:00:22]} 7. O-O {[%emt 0:00:14]} e5 {[%emt 0:00:12]} 8. e4 {[%emt 0:00:19]} c6 {[%emt 0:00:29]} 9. h3 {[%emt 0:00:07]} Qb6 {[%emt 0:00:31]} 10. Rb1 {[%emt 0:00:26]} exd4 {[%emt 0:12:57]} 11. Nxd4 {[%emt 0:00:03]} Ng4 {[%emt 0:23:27]} 12. Nde2 {[%emt 0:00:49]} Nge5 {[%emt 0:00:43]} 13. b3 {[%emt 0:00:12]} Nc5 {[%emt 0:13:27]} 14. Qxd6 {[%emt 0:11:09]} Rd8 {[%emt 0:21:28]} 15. Qe7 {[%emt 0:00:15]} Ne6 {[%emt 0:03:33]} 16. Be3 {[%emt 0:04:25]} Qa5 {[%emt 0:00:35]} 17. Rfd1 {[%emt 0:01:07]} Nd7 {[%emt 0:03:11]} 18. Bd2 {[%emt 0:04:04]} Qa6 {[%emt 0:05:09]} 19. Qh4 {[%emt 0:01:12]} h5 {[%emt 0:03:34]} 20. g4 {[%emt 0:02:38]} Bf6 {[%emt 0:04:18]} 21. g5 {[%emt 0:01:33]} Bg7 {[%emt 0:00:40]} 22. Qg3 {[%emt 0:02:07]} Ndc5 {[%emt 0:01:48]} 23. Be3 {[%emt 0:01:50]} Qa5 {[%emt 0:01:35]} 24. b4 {[%emt 0:00:19]} Rxd1+ {[%emt 0:00:07]} 25. Nxd1 {[%emt 0:00:48]} Qxa2 {[%emt 0:00:22]} 26. Nec3 {[%emt 0:03:32]} Nxe4 {[%emt 0:02:52]} 27. Nxa2 {[%emt 0:01:18]} Nxg3 {[%emt 0:00:03]} 28. fxg3 {[%emt 0:00:02]} Be5 {[%emt 0:00:39]} 29. Kf2 {[%emt 0:00:27]} Ng7 {[%emt 0:00:25]} 30. b5 {[%emt 0:01:47]} Bf5 {[%emt 0:00:22]} 31. Rc1 {[%emt 0:00:19]} cxb5 {[%emt 0:01:24]} 32. cxb5 {[%emt 0:00:04]} 1-0

[Event "World Senior chT-50 2019"]
[Site "Rhodes"]
[Date "2019.04.21"]
[Round "6.30"]
[White "Frostick, Clive A"]
[Black "Berg, Anders Hoyer"]
[Result "1-0"]
[ECO "B31"]
[WhiteElo "2121"]
[BlackElo "2046"]
[Annotator "NA"]
[PlyCount "121"]
[EventDate "2019.04.16"]
[EventType "team-tourn"]
[EventCountry "GRE"]
[SourceTitle "playchess.com"]
[Source "ChessBase"]
[SourceQuality "1"]
[WhiteTeam "England"]
[BlackTeam "Norway"]
[WhiteTeamCountry "ENG"]
[BlackTeamCountry "NOR"]
[TimeControl "40/5400+30:1800+30"]

1. e4 {[%emt 0:00:00]} c5 {[%emt 0:00:17]} 2. Nf3 {[%emt 0:00:22]} Nc6 {[%emt 0:00:17]} 3. Bb5 {[%emt 0:00:49]} g6 {[%emt 0:00:21]} 4. O-O {[%emt 0:00:39]} Bg7 {[%emt 0:00:31]} 5. Re1 {[%emt 0:01:12]} e5 {[%emt 0:02:35]} 6. Bxc6 {[%emt 0:05:10]} dxc6 {[%emt 0:02:04]} 7. d3 {[%emt 0:03:04]} Qe7 {[%emt 0:07:37]} 8. a3 {[%emt 0:04:46]} a5 {[%emt 0:01:39]} 9. Be3 {[%emt 0:04:44]} Nf6 {[%emt 0:05:05]} 10. h3 {[%emt 0:05:32]} O-O {[%emt 0:10:06]} 11. Qd2 {[%emt 0:09:28]} b6 {[%emt 0:05:28]} 12. Qc3 {[%emt 0:02:16]} Nd7 {[%emt 0:09:03]} 13. Nbd2 {[%emt 0:06:25]} a4 {[%emt 0:05:59]} 14. b4 {[%emt 0:15:56]} axb3 {[%emt 0:05:47]} 15. Qxb3 {[%emt 0:04:56]} Ba6 {[%emt 0:02:37]} 16. a4 {[%emt 0:06:40]} Rfb8 {[%emt 0:12:48]} 17. Nc4 {[%emt 0:05:32]} Bxc4 {[%emt 0:01:47]} 18. Qxc4 {[%emt 0:00:05]} Rb7 {[%emt 0:05:43]} 19. Ra2 {[%emt 0:02:30]} Rba7 {[%emt 0:01:12]} 20. Rea1 {[%emt 0:00:37]} Bf8 {[%emt 0:03:30]} 21. Qb3 {[%emt 0:05:05]} Kg7 {[%emt 0:03:44]} 22. Nd2 {[%emt 0:02:19]} Qd8 {[%emt 0:04:16]} 23. Nc4 {[%emt 0:01:31]} b5 {[%emt 0:03:17]} 24. axb5 {[%emt 0:00:57]} Rxa2 {[%emt 0:00:04]} 25. Rxa2 {[%emt 0:00:06]} Rxa2 {[%emt 0:00:16]} 26. Qxa2 {[%emt 0:00:04]} cxb5 {[%emt 0:00:06]} 27. Nd2 {[%emt 0:00:17]} Qc7 {[%emt 0:03:19]} 28. Qa6 {[%emt 0:01:09]} Qb6 {[%emt 0:00:56]} 29. Qc8 {[%emt 0:01:02]} Qa7 {[%emt 0:01:30]} 30. Qc6 {[%emt 0:00:45]} b4 {[%emt 0:00:44]} 31. g3 {[%emt 0:04:13]} f6 {[%emt 0:00:25]} 32. Nb3 {[%emt 0:01:02]} Be7 {[%emt 0:01:32]} 33. Qe6 {[%emt 0:00:37]} Nf8 {[%emt 0:00:44]} 34. Qc4 {[%emt 0:01:15]} Nd7 {[%emt 0:00:39]} 35. Qxb4 {[%emt 0:00:12]} cxb4 {[%emt 0:00:47]} 36. Bxa7 {[%emt 0:00:06]} Kf7 {[%emt 0:00:14]} 37. Kf1 {[%emt 0:00:45]} Ke6 {[%emt 0:00:10]} 38. Ke2 {[%emt 0:01:18]} f5 {[%emt 0:01:02]} 39. f3 {[%emt 0:00:30]} Kd6 {[%emt 0:00:09]} 40. d4 {[%emt 0:00:00]} exd4 {[%emt 0:00:00]} 41. exf5 {[%emt 0:02:59]} gxf5 {[%emt 0:02:10]} 42. Nxd4 {[%emt 0:03:15]} Ke5 {[%emt 0:02:03]} 43. Nc6+ {[%emt 0:07:16]} Ke6 {[%emt 0:00:26]} 44. Nxe7 {[%emt 0:00:06]} Kxe7 {[%emt 0:00:07]} 45. Kd3 {[%emt 0:01:27]} Ne5+ {[%emt 0:01:06]} 46. Ke3 {[%emt 0:00:24]} Nc4+ {[%emt 0:15:04]} 47. Kd4 {[%emt 0:01:35]} Nd2 {[%emt 0:04:30]} 48. f4 {[%emt 0:06:28]} b3 {[%emt 0:05:43]} 49. cxb3 {[%emt 0:01:45]} Nxb3+ {[%emt 0:00:31]} 50. Ke5 {[%emt 0:00:05]} Kf7 {[%emt 0:01:00]} 51. Kxf5 {[%emt 0:00:12]} Nd2 {[%emt 0:00:36]} 52. g4 {[%emt 0:00:52]} Nf3 {[%emt 0:00:34]} 53. g5 {[%emt 0:01:17]} Nh4+ {[%emt 0:00:23]} 54. Kg4 {[%emt 0:00:18]} Ng6 {[%emt 0:00:27]} 55. Bd4 {[%emt 0:00:13]} Ne7 {[%emt 0:01:32]} 56. h4 {[%emt 0:01:37]} Kg6 {[%emt 0:00:51]} 57. f5+ {[%emt 0:00:28]} Kf7 {[%emt 0:00:00]} 58. h5 {[%emt 0:00:13]} Nc6 {[%emt 0:00:38]} 59. Bb2 {[%emt 0:01:15]} Nb4 {[%emt 0:00:26]} 60. g6+ {[%emt 0:01:02]} Kg8 {[%emt 0:01:47]} 61. f6 {[%emt 0:00:22]} 1-0

[Event "World Senior chT-50 2019"]
[Site "Rhodes"]
[Date "2019.04.21"]
[Round "6.31"]
[White "Johnsen, Sylvia"]
[Black "Fraser-Mitchell, Jeremy N"]
[Result "0-1"]
[ECO "A26"]
[WhiteElo "1949"]
[BlackElo "2073"]
[Annotator "NA"]
[PlyCount "116"]
[EventDate "2019.04.16"]
[EventType "team-tourn"]
[EventCountry "GRE"]
[SourceTitle "playchess.com"]
[Source "ChessBase"]
[SourceQuality "1"]
[WhiteTeam "Norway"]
[BlackTeam "England"]
[WhiteTeamCountry "NOR"]
[BlackTeamCountry "ENG"]
[TimeControl "40/5400+30:1800+30"]

1. c4 {[%emt 0:00:00]} e5 {[%emt 0:00:00]} 2. g3 {[%emt 0:00:00]} Nc6 {[%emt 0:00:00]} 3. Bg2 {[%emt 0:00:00]} g6 {[%emt 0:00:28]} 4. Nc3 {[%emt 0:00:18]} Bg7 {[%emt 0:00:06]} 5. d3 {[%emt 0:00:53]} d6 {[%emt 0:00:07]} 6. Nf3 {[%emt 0:00:29]} f5 {[%emt 0:00:27]} 7. e4 {[%emt 0:01:52]} Nf6 {[%emt 0:01:12]} 8. Bg5 {[%emt 0:06:09]} h6 {[%emt 0:03:45]} 9. Be3 {[%emt 0:00:17]} O-O {[%emt 0:00:34]} 10. Qd2 {[%emt 0:15:09]} fxe4 {[%emt 0:10:02]} 11. dxe4 {[%emt 0:01:10]} Kh7 {[%emt 0:09:04]} 12. O-O {[%emt 0:17:26]} Bg4 {[%emt 0:11:22]} 13. Ne1 {[%emt 0:04:21]} Qd7 {[%emt 0:02:23]} 14. Nd5 {[%emt 0:05:37]} Rf7 {[%emt 0:16:12]} 15. f4 {[%emt 0:10:04]} exf4 {[%emt 0:05:31]} 16. Rxf4 {[%emt 0:03:54]} Raf8 {[%emt 0:00:46]} 17. Nd3 {[%emt 0:02:21]} g5 {[%emt 0:13:51]} 18. Rf2 {[%emt 0:03:25]} Bh3 {[%emt 0:05:14]} 19. Bxh3 {[%emt 0:13:32]} Qxh3 {[%emt 0:00:07]} 20. Nxf6+ {[%emt 0:02:45]} Rxf6 {[%emt 0:00:28]} 21. Raf1 {[%emt 0:02:14]} Qe6 {[%emt 0:02:15]} 22. b3 {[%emt 0:00:14]} Qxe4 {[%emt 0:01:02]} 23. Re1 {[%emt 0:04:29]} Rxf2 {[%emt 0:03:21]} 24. Nxf2 {[%emt 0:00:11]} Qf5 {[%emt 0:00:14]} 25. Qd3 {[%emt 0:01:23]} Ne5 {[%emt 0:01:40]} 26. Qxf5+ {[%emt 0:00:06]} Rxf5 {[%emt 0:00:05]} 27. Kg2 {[%emt 0:00:09]} b6 {[%emt 0:00:10]} 28. g4 {[%emt 0:00:36]} Rf7 {[%emt 0:00:16]} 29. h3 {[%emt 0:00:18]} Kg6 {[%emt 0:02:39]} 30. Re2 {[%emt 0:01:12]} Re7 {[%emt 0:02:27]} 31. Bd4 {[%emt 0:01:01]} Nc6 {[%emt 0:00:41]} 32. Rxe7 {[%emt 0:00:12]} Nxe7 {[%emt 0:00:06]} 33. Be3 {[%emt 0:00:06]} Kf7 {[%emt 0:00:30]} 34. Kf3 {[%emt 0:00:06]} Ke6 {[%emt 0:00:15]} 35. Ke4 {[%emt 0:00:14]} c6 {[%emt 0:01:29]} 36. Bd2 {[%emt 0:00:28]} d5+ {[%emt 0:00:29]} 37. cxd5+ {[%emt 0:00:25]} Nxd5 {[%emt 0:00:53]} 38. a4 {[%emt 0:00:49]} c5 {[%emt 0:01:13]} 39. Nd3 {[%emt 0:00:45]} Bd4 {[%emt 0:02:03]} 40. a5 {[%emt 0:00:00]} Nf6+ {[%emt 0:00:00]} 41. Kf3 {[%emt 0:00:32]} Kd5 {[%emt 0:00:32]} 42. axb6 {[%emt 0:01:24]} axb6 {[%emt 0:00:08]} 43. h4 {[%emt 0:00:17]} Ne4 {[%emt 0:01:34]} 44. Bc1 {[%emt 0:01:00]} Bc3 {[%emt 0:04:17]} 45. hxg5 {[%emt 0:04:11]} hxg5 {[%emt 0:00:10]} 46. Ke2 {[%emt 0:00:27]} b5 {[%emt 0:01:45]} 47. Be3 {[%emt 0:03:59]} c4 {[%emt 0:02:02]} 48. bxc4+ {[%emt 0:02:03]} Kxc4 {[%emt 0:00:35]} 49. Bc1 {[%emt 0:01:36]} Bf6 {[%emt 0:03:50]} 50. Ne1 {[%emt 0:10:10]} b4 {[%emt 0:06:12]} 51. Nd3 {[%emt 0:04:26]} b3 {[%emt 0:04:46]} 52. Ke3 {[%emt 0:02:46]} Nc5 {[%emt 0:01:51]} 53. Bb2 {[%emt 0:02:56]} Bxb2 {[%emt 0:01:46]} 54. Nxb2+ {[%emt 0:00:04]} Kc3 {[%emt 0:01:15]} 55. Nd1+ {[%emt 0:00:15]} Kc2 {[%emt 0:00:46]} 56. Ke2 {[%emt 0:00:23]} b2 {[%emt 0:02:34]} 57. Nxb2 {[%emt 0:00:06]} Kxb2 {[%emt 0:00:05]} 58. Ke3 {[%emt 0:00:10]} Kc3 {[%emt 0:00:05] Kd4+ [%emt 00:00:30]} 0-1

[Event "World Senior chT-50 2019"]
[Site "Rhodes"]
[Date "2019.04.21"]
[Round "6.32"]
[White "Jackson, Sheila"]
[Black "Harstad, Christian"]
[Result "1-0"]
[ECO "B22"]
[WhiteElo "2051"]
[BlackElo "1911"]
[Annotator "NA"]
[PlyCount "71"]
[EventDate "2019.04.16"]
[EventType "team-tourn"]
[EventCountry "GRE"]
[SourceTitle "playchess.com"]
[Source "ChessBase"]
[SourceQuality "1"]
[WhiteTeam "England"]
[BlackTeam "Norway"]
[WhiteTeamCountry "ENG"]
[BlackTeamCountry "NOR"]
[TimeControl "40/5400+30:1800+30"]

1. e4 {[%emt 0:00:00]} c5 {[%emt 0:00:00]} 2. c3 {[%emt 0:00:23]} Nf6 {[%emt 0:00:58]} 3. e5 {[%emt 0:00:04]} Nd5 {[%emt 0:00:11]} 4. d4 {[%emt 0:00:08]} cxd4 {[%emt 0:00:20]} 5. Nf3 {[%emt 0:00:12]} e6 {[%emt 0:00:17]} 6. cxd4 {[%emt 0:01:04]} Nc6 {[%emt 0:01:02]} 7. a3 {[%emt 0:07:20]} d6 {[%emt 0:01:08]} 8. Bc4 {[%emt 0:13:38]} Be7 {[%emt 0:03:19]} 9. O-O {[%emt 0:01:11]} O-O {[%emt 0:01:11]} 10. Re1 {[%emt 0:04:21]} Qc7 {[%emt 0:05:33]} 11. Nbd2 {[%emt 0:08:22]} Bd7 {[%emt 0:07:52]} 12. exd6 {[%emt 0:05:05]} Bxd6 {[%emt 0:05:05]} 13. Ne4 {[%emt 0:02:05]} Rac8 {[%emt 0:09:00]} 14. Bd3 {[%emt 0:07:41]} f5 {[%emt 0:04:28]} 15. Nxd6 {[%emt 0:02:25]} Qxd6 {[%emt 0:00:12]} 16. Bd2 {[%emt 0:04:31]} a5 {[%emt 0:05:09]} 17. Rc1 {[%emt 0:02:33]} Rb8 {[%emt 0:08:02]} 18. Bc4 {[%emt 0:04:15]} b5 {[%emt 0:05:43]} 19. Bb3 {[%emt 0:06:13]} a4 {[%emt 0:03:28]} 20. Bxd5 {[%emt 0:05:31]} Qxd5 {[%emt 0:01:57]} 21. Bf4 {[%emt 0:01:08]} Rbc8 {[%emt 0:02:20]} 22. Rc5 {[%emt 0:02:41]} Qa2 {[%emt 0:03:07]} 23. Qc2 {[%emt 0:04:55]} b4 {[%emt 0:04:30]} 24. axb4 {[%emt 0:00:40]} Nxb4 {[%emt 0:00:38]} 25. Qd2 {[%emt 0:00:07]} Nd5 {[%emt 0:03:12]} 26. Be5 {[%emt 0:00:07]} Rxc5 {[%emt 0:03:55]} 27. dxc5 {[%emt 0:00:01]} Qc4 {[%emt 0:05:46]} 28. Rc1 {[%emt 0:00:43]} Qb4 {[%emt 0:05:56]} 29. c6 {[%emt 0:02:33]} Qxd2 {[%emt 0:02:49]} 30. Nxd2 {[%emt 0:00:04]} Bc8 {[%emt 0:01:18]} 31. c7 {[%emt 0:04:54]} Ba6 {[%emt 0:01:54]} 32. Rc6 {[%emt 0:02:03]} Bc8 {[%emt 0:00:23]} 33. Nc4 {[%emt 0:02:02]} Bd7 {[%emt 0:01:50]} 34. Rd6 {[%emt 0:02:55]} Bc8 {[%emt 0:00:11]} 35. Rd8 {[%emt 0:00:23]} Ba6 {[%emt 0:00:26]} 36. Bd6 {[%emt 0:01:07]} 1-0